fUSD/lending_fUSD_20260520
["ID","MTS","AMOUNT","RATE_DAILY","PERIOD"]
[422708839,1779286241000,-500.0,0.00013698,2]
[422708837,1779286241000,-500.0,0.00013698,2]
[422708841,1779286241000,-500.0,0.00013698,2]
[422708844,1779286241000,-500.0,0.00013698,2]
[422708845,1779286241000,-500.0,0.00013698,2]
[422708848,1779286241000,-500.0,0.00013698,2]
[422708847,1779286241000,-198.14496198,0.00013698,2]
[422708846,1779286241000,-353.138314,0.00013698,2]
[422708850,1779286241000,-500.0,0.00013698,2]
[422708852,1779286241000,-500.0,0.00013698,2]
[422708853,1779286241000,-500.0,0.00013698,2]
[422708835,1779286241000,-162.35,0.00013649,2]
[422708849,1779286241000,-500.0,0.00013698,2]
[422708860,1779286241000,-500.0,0.00013698,2]
[422708851,1779286241000,-500.0,0.00013698,2]
[422708861,1779286241000,-404.1758266,0.00013698,2]
[422708867,1779286241000,-434.68248138,0.00013698,2]
[422708865,1779286241000,-500.0,0.00013698,2]
[422708866,1779286241000,-500.0,0.00013698,2]
[422708864,1779286241000,-500.0,0.00013698,2]
[422708858,1779286241000,-500.0,0.00013698,2]
[422708859,1779286241000,-500.0,0.00013698,2]
[422708857,1779286241000,-500.0,0.00013698,2]
[422708854,1779286241000,-500.0,0.00013698,2]
[422708855,1779286241000,-500.0,0.00013698,2]
[422708856,1779286241000,-500.0,0.00013698,2]
[422708960,1779286242000,-150.0,0.00013862,2]
[422708963,1779286242000,-4500.0,0.000139,5]
[422708954,1779286242000,-6911.9555182,0.00013789,2]
[422708956,1779286242000,-3857.2562444,0.00013789,2]
[422708961,1779286242000,-150.0,0.00013887,2]
[422708970,1779286242000,-150.0,0.00013987,2]
[422708958,1779286242000,-166.66,0.00013836,2]
[422708952,1779286242000,-150.0,0.00013787,2]
[422708969,1779286242000,-150.0,0.00013987,2]
[422708967,1779286242000,-166.66,0.00013973,2]
[422708973,1779286242000,-500.0,0.00013989,2]
[422708965,1779286242000,-531.08257441,0.00013942,2]
[422708968,1779286242000,-150.0,0.00013987,2]
[422708971,1779286242000,-500.0,0.00013989,2]
[422708983,1779286242000,-5050.13988551,0.00014,2]
[422708977,1779286242000,-500.0,0.00013989,2]
[422708978,1779286242000,-7804.5361107,0.0001399,2]
[422708980,1779286242000,-9861.25,0.00014,2]
[422708981,1779286242000,-160.0,0.00014,2]
[422708976,1779286242000,-500.0,0.00013989,2]
[422708975,1779286242000,-500.0,0.00013989,2]
[422708972,1779286242000,-500.0,0.00013989,2]
[422708979,1779286242000,-760.43795284,0.00013994,2]
[422708982,1779286242000,-250.0,0.00014,2]
[422708984,1779286242000,-1804.59170633,0.00014,2]
[422708991,1779286242000,-14094.01724875,0.00014208,2]
[422708992,1779286242000,-4218.79269693,0.00014218,2]
[422708950,1779286242000,-827.341249,0.00013773,2]
[422708974,1779286242000,-500.0,0.00013989,2]
[422708948,1779286242000,-2310.0,0.0001372,2]
[422708899,1779286242000,-506.53738195,0.00013698,2]
[422708940,1779286242000,-449.94,0.00013698,2]
[422708993,1779286242000,-10356.22507215,0.00014219,2]
[422708898,1779286242000,-500.0,0.00013698,2]
[422708902,1779286242000,-500.0,0.00013698,2]
[422708901,1779286242000,-500.0,0.00013698,2]
[422708900,1779286242000,-500.0,0.00013698,2]
[422708903,1779286242000,-500.0,0.00013698,2]
[422708904,1779286242000,-500.0,0.00013698,2]
[422708919,1779286242000,-500.0,0.00013698,2]
[422708906,1779286242000,-500.0,0.00013698,2]
[422708917,1779286242000,-500.0,0.00013698,2]
[422708921,1779286242000,-500.0,0.00013698,2]
[422708923,1779286242000,-500.0,0.00013698,2]
[422708905,1779286242000,-500.0,0.00013698,2]
[422708946,1779286242000,-2000.0,0.00013699,7]
[422708925,1779286242000,-500.0,0.00013698,2]
[422708915,1779286242000,-500.0,0.00013698,2]
[422708911,1779286242000,-500.0,0.00013698,2]
[422708909,1779286242000,-500.0,0.00013698,2]
[422708913,1779286242000,-500.0,0.00013698,2]
[422708907,1779286242000,-500.0,0.00013698,2]
[422708929,1779286242000,-500.0,0.00013698,2]
[422708932,1779286242000,-500.0,0.00013698,2]
[422708934,1779286242000,-500.0,0.00013698,2]
[422708944,1779286242000,-166.66,0.00013699,2]
[422708936,1779286242000,-500.0,0.00013698,2]
[422708928,1779286242000,-500.0,0.00013698,2]
[422708942,1779286242000,-200.0,0.00013699,2]
[422708938,1779286242000,-465.15228181,0.00013698,2]
[422708908,1779286242000,-500.0,0.00013698,2]
[422708994,1779286242000,-1200.0,0.00014224,2]
[422709038,1779286242000,-500.0,0.00014429,2]
[422708996,1779286242000,-150.0,0.00014237,2]
[422709023,1779286242000,-5600.0,0.000144,5]
[422709024,1779286242000,-479.0,0.00014419,2]
[422709025,1779286242000,-200.0,0.00014429,2]
[422709034,1779286242000,-200.0,0.00014429,2]
[422709028,1779286242000,-500.0,0.00014429,2]
[422709026,1779286242000,-174.61919141,0.00014429,2]
[422709031,1779286242000,-500.0,0.00014429,2]
[422709027,1779286242000,-623.58710448,0.00014429,2]
[422709032,1779286242000,-500.0,0.00014429,2]
[422709030,1779286242000,-500.0,0.00014429,2]
[422709029,1779286242000,-181.08010149,0.00014429,2]
[422709033,1779286242000,-500.0,0.00014429,2]
[422709035,1779286242000,-500.0,0.00014429,2]
[422709021,1779286242000,-166.66,0.00014384,2]
[422709036,1779286242000,-500.0,0.00014429,2]
[422709048,1779286242000,-287.00931929,0.00014429,2]
[422709042,1779286242000,-500.0,0.00014429,2]
[422709045,1779286242000,-181.08010149,0.00014429,2]
[422709040,1779286242000,-192.36861835,0.00014429,2]
[422709043,1779286242000,-500.0,0.00014429,2]
[422709047,1779286242000,-500.0,0.00014429,2]
[422709039,1779286242000,-500.0,0.00014429,2]
[422709046,1779286242000,-500.0,0.00014429,2]
[422709041,1779286242000,-500.0,0.00014429,2]
[422709044,1779286242000,-500.0,0.00014429,2]
[422709050,1779286242000,-1235.18214925,0.00014429,2]
[422708995,1779286242000,-500.0,0.00014224,2]
[422709051,1779286242000,-1798.80895522,0.00014429,2]
[422709037,1779286242000,-500.0,0.00014429,2]
[422709022,1779286242000,-150.0,0.00014387,2]
[422709049,1779286242000,-578.20924308,0.00014429,2]
[422709020,1779286242000,-2000.0,0.00014329,7]
[422709016,1779286242000,-500.0,0.00014249,2]
[422708990,1779286242000,-12376.8493657,0.00014198,2]
[422708989,1779286242000,-150.0,0.00014187,2]
[422708986,1779286242000,-150.0,0.00014087,2]
[422708988,1779286242000,-15000.0,0.00014131,2]
[422708987,1779286242000,-166.66,0.0001411,2]
[422708997,1779286242000,-150.0,0.00014237,2]
[422709000,1779286242000,-500.0,0.00014249,2]
[422709008,1779286242000,-500.0,0.00014249,2]
[422709006,1779286242000,-500.0,0.00014249,2]
[422708998,1779286242000,-150.0,0.00014237,2]
[422709003,1779286242000,-500.0,0.00014249,2]
[422709002,1779286242000,-300.0,0.00014249,2]
[422709004,1779286242000,-500.0,0.00014249,2]
[422708985,1779286242000,-210.730631,0.0001402,2]
[422709005,1779286242000,-500.0,0.00014249,2]
[422709009,1779286242000,-500.0,0.00014249,2]
[422709013,1779286242000,-186.64364503,0.00014249,2]
[422709015,1779286242000,-500.0,0.00014249,2]
[422709017,1779286242000,-417878.84040191,0.0001425,2]
[422709014,1779286242000,-300.0,0.00014249,2]
[422709019,1779286242000,-150.0,0.00014287,2]
[422709011,1779286242000,-639.98009813,0.00014249,2]
[422709012,1779286242000,-500.0,0.00014249,2]
[422709010,1779286242000,-500.0,0.00014249,2]
[422709007,1779286242000,-500.0,0.00014249,2]
[422708999,1779286242000,-166.66,0.00014247,2]
[422709001,1779286242000,-405.29129272,0.00014249,2]
[422709018,1779286242000,-15000.0,0.00014254,2]
[422709112,1779286243000,-152.0,0.00014429,2]
[422709108,1779286243000,-151.0,0.00014429,2]
[422709114,1779286243000,-152.0,0.00014429,2]
[422709118,1779286243000,-743.50770149,0.00014429,2]
[422709094,1779286243000,-151.0,0.00014429,2]
[422709107,1779286243000,-151.0,0.00014429,2]
[422709105,1779286243000,-151.0,0.00014429,2]
[422709103,1779286243000,-151.0,0.00014429,2]
[422709106,1779286243000,-151.0,0.00014429,2]
[422709109,1779286243000,-152.0,0.00014429,2]
[422709111,1779286243000,-152.0,0.00014429,2]
[422709104,1779286243000,-279.9045709,0.00014429,2]
[422709121,1779286243000,-152.0,0.00014429,2]
[422709117,1779286243000,-152.0,0.00014429,2]
[422709116,1779286243000,-181.08010149,0.00014429,2]
[422709113,1779286243000,-152.0,0.00014429,2]
[422709119,1779286243000,-152.0,0.00014429,2]
[422709110,1779286243000,-152.0,0.00014429,2]
[422709129,1779286243000,-6111.0,0.00014466,2]
[422709123,1779286243000,-152.0,0.00014429,2]
[422709130,1779286243000,-15000.0,0.00014469,2]
[422709131,1779286243000,-151.0,0.00014484,2]
[422709120,1779286243000,-152.0,0.00014429,2]
[422709132,1779286243000,-333.0,0.00014486,2]
[422709133,1779286243000,-150.0,0.00014487,2]
[422709102,1779286243000,-151.0,0.00014429,2]
[422709115,1779286243000,-152.0,0.00014429,2]
[422709101,1779286243000,-151.0,0.00014429,2]
[422709077,1779286243000,-151.0,0.00014429,2]
[422709099,1779286243000,-151.0,0.00014429,2]
[422709057,1779286243000,-151.0,0.00014429,2]
[422709063,1779286243000,-151.0,0.00014429,2]
[422709061,1779286243000,-151.0,0.00014429,2]
[422709058,1779286243000,-151.0,0.00014429,2]
[422709059,1779286243000,-151.0,0.00014429,2]
[422709053,1779286243000,-151.0,0.00014429,2]
[422709052,1779286243000,-151.0,0.00014429,2]
[422709055,1779286243000,-151.0,0.00014429,2]
[422709056,1779286243000,-151.0,0.00014429,2]
[422709054,1779286243000,-151.0,0.00014429,2]
[422709065,1779286243000,-151.0,0.00014429,2]
[422709068,1779286243000,-151.0,0.00014429,2]
[422709100,1779286243000,-151.0,0.00014429,2]
[422709072,1779286243000,-151.0,0.00014429,2]
[422709078,1779286243000,-151.0,0.00014429,2]
[422709081,1779286243000,-151.0,0.00014429,2]
[422709084,1779286243000,-151.0,0.00014429,2]
[422709082,1779286243000,-151.0,0.00014429,2]
[422709088,1779286243000,-151.0,0.00014429,2]
[422709090,1779286243000,-151.0,0.00014429,2]
[422709092,1779286243000,-151.0,0.00014429,2]
[422709086,1779286243000,-151.0,0.00014429,2]
[422709095,1779286243000,-181.08010149,0.00014429,2]
[422709097,1779286243000,-151.0,0.00014429,2]
[422709096,1779286243000,-151.0,0.00014429,2]
[422709098,1779286243000,-151.0,0.00014429,2]
[422709075,1779286243000,-151.0,0.00014429,2]
[422709122,1779286243000,-152.0,0.00014429,2]
[422709145,1779286243000,-1100.0,0.000145,5]
[422709124,1779286243000,-152.0,0.00014429,2]
[422709161,1779286243000,-315.0,0.00014702,2]
[422709164,1779286243000,-594.0,0.00014702,2]
[422709165,1779286243000,-913.0,0.00014702,2]
[422709168,1779286243000,-226.0,0.00014702,2]
[422709170,1779286243000,-154.0,0.00014702,2]
[422709167,1779286243000,-686.0,0.00014702,2]
[422709166,1779286243000,-486.0,0.00014702,2]
[422709171,1779286243000,-1771.0,0.00014702,2]
[422709169,1779286243000,-172.0,0.00014702,2]
[422709175,1779286243000,-151.0,0.00014704,2]
[422709177,1779286243000,-1542.2657417,0.00014722,2]
[422709181,1779286243000,-151.0,0.00014759,2]
[422709163,1779286243000,-154.0,0.00014702,2]
[422709179,1779286243000,-860.6702035,0.00014722,2]
[422709173,1779286243000,-698.0,0.00014702,2]
[422709183,1779286243000,-625.0,0.00014761,2]
[422709185,1779286243000,-3545.0,0.00014761,2]
[422709186,1779286243000,-1224.0,0.00014761,2]
[422709188,1779286243000,-931.0,0.00014761,2]
[422709187,1779286243000,-6058.0,0.00014761,2]
[422709184,1779286243000,-1354.0,0.00014761,2]
[422709189,1779286243000,-150.0,0.00014786,2]
[422709191,1779286243000,-1100.0,0.000148,5]
[422709190,1779286243000,-500.0,0.00014795,2]
[422709192,1779286243000,-151.0,0.00014814,2]
[422709193,1779286243000,-956.10307216,0.0001485,2]
[422709182,1779286243000,-150.0,0.00014761,2]
[422709162,1779286243000,-582.0,0.00014702,2]
[422709126,1779286243000,-151.0,0.00014429,2]
[422709153,1779286243000,-151.0,0.00014649,2]
[422709160,1779286243000,-1100.0,0.000147,5]
[422709127,1779286243000,-450.44166897,0.00014429,2]
[422709128,1779286243000,-15000.0,0.00014438,2]
[422709125,1779286243000,-152.0,0.00014429,2]
[422709134,1779286243000,-150.0,0.00014487,2]
[422709135,1779286243000,-150.0,0.00014487,2]
[422709140,1779286243000,-150.0,0.00014498,2]
[422709146,1779286243000,-6111.0,0.00014536,2]
[422709141,1779286243000,-2454.11092739,0.00014498,2]
[422709143,1779286243000,-1468.62262336,0.000145,2]
[422709137,1779286243000,-3328.6362382,0.00014498,2]
[422709138,1779286243000,-150.0,0.00014498,2]
[422709142,1779286243000,-1276.45251925,0.000145,2]
[422709136,1779286243000,-150.0,0.00014498,2]
[422709139,1779286243000,-17493.53173387,0.00014498,2]
[422709144,1779286243000,-1544.33423737,0.000145,2]
[422709151,1779286243000,-1100.0,0.000146,5]
[422709152,1779286243000,-150.0,0.00014612,2]
[422709149,1779286243000,-150.0,0.00014587,2]
[422709147,1779286243000,-151.0,0.00014539,2]
[422709159,1779286243000,-150.0,0.00014687,2]
[422709150,1779286243000,-151.0,0.00014594,2]
[422709158,1779286243000,-6891.8508864,0.00014685,2]
[422709156,1779286243000,-564.5003467,0.00014685,2]
[422709155,1779286243000,-10759.5537961,0.00014685,2]
[422709154,1779286243000,-500.0,0.00014672,2]
[422709148,1779286243000,-11240.94704734,0.00014551,2]
[422709157,1779286243000,-34795.2229007,0.00014685,2]
[422709222,1779286244000,-181.08010149,0.00014977,2]
[422709224,1779286244000,-187.78006525,0.00014977,2]
[422709228,1779286244000,-187.78006525,0.00014977,2]
[422709230,1779286244000,-1280.88388878,0.00014977,2]
[422709237,1779286244000,-150.0,0.00014986,2]
[422709238,1779286244000,-150.0,0.00014986,2]
[422709231,1779286244000,-1865.36488657,0.00014977,2]
[422709232,1779286244000,-187.78006525,0.00014977,2]
[422709233,1779286244000,-376.04885881,0.00014977,2]
[422709239,1779286244000,-150.0,0.00014986,2]
[422709234,1779286244000,-771.01748645,0.00014977,2]
[422709240,1779286244000,-230.71482245,0.00014986,2]
[422709242,1779286244000,-150.00000001,0.00014986,2]
[422709236,1779286244000,-151.0,0.00014979,2]
[422709243,1779286244000,-7079.7342435,0.0001499,2]
[422709235,1779286244000,-240.9462934,0.00014977,2]
[422709245,1779286244000,-150.0,0.00014999,2]
[422709241,1779286244000,-150.0,0.00014986,2]
[422709220,1779286244000,-211.64480078,0.00014977,2]
[422709205,1779286244000,-2266.96892767,0.000149,2]
[422709218,1779286244000,-2000.0,0.00014959,7]
[422709200,1779286244000,-4218.79269693,0.000149,2]
[422709201,1779286244000,-1548.0,0.000149,5]
[422709202,1779286244000,-465.57044318,0.000149,2]
[422709203,1779286244000,-343.16823465,0.000149,2]
[422709204,1779286244000,-760.43795284,0.000149,2]
[422709196,1779286244000,-150.0,0.00014886,2]
[422709244,1779286244000,-3276.16412883,0.00014999,2]
[422709194,1779286244000,-10000.0,0.0001485,2]
[422709226,1779286244000,-200.0,0.00014977,2]
[422709195,1779286244000,-151.0,0.00014869,2]
[422709198,1779286244000,-343.16823465,0.000149,2]
[422709197,1779286244000,-343.16823465,0.00014899,2]
[422709206,1779286244000,-151.0,0.00014924,2]
[422709214,1779286244000,-500.0,0.00014928,2]
[422709209,1779286244000,-500.0,0.00014928,2]
[422709211,1779286244000,-500.0,0.00014928,2]
[422709216,1779286244000,-500.0,0.00014928,2]
[422709207,1779286244000,-150.0,0.00014924,2]
[422709199,1779286244000,-10356.22507215,0.000149,2]
[422709256,1779286244000,-500.0,0.00014999,2]
[422709250,1779286244000,-500.0,0.00014999,2]
[422709255,1779286244000,-500.0,0.00014999,2]
[422709263,1779286244000,-500.0,0.00014999,2]
[422709273,1779286244000,-164.37893862,0.00014999,2]
[422709282,1779286244000,-300.0,0.00014999,2]
[422709283,1779286244000,-657086.9431045,0.00015,2]
[422709274,1779286244000,-500.0,0.00014999,2]
[422709275,1779286244000,-500.0,0.00014999,2]
[422709258,1779286244000,-500.0,0.00014999,2]
[422709279,1779286244000,-500.0,0.00014999,2]
[422709277,1779286244000,-500.0,0.00014999,2]
[422709281,1779286244000,-531.13887723,0.00014999,2]
[422709280,1779286244000,-500.0,0.00014999,2]
[422709278,1779286244000,-500.0,0.00014999,2]
[422709284,1779286244000,-1396.45814676,8.873e-05,2]
[422709288,1779286244000,-30730.0,0.00015,2]
[422709286,1779286244000,-32508.88239924,0.00015,2]
[422709287,1779286244000,-2095.592,0.00015,2]
[422709285,1779286244000,-8587.26550168,0.00015,2]
[422709268,1779286244000,-500.0,0.00014999,2]
[422709264,1779286244000,-500.0,0.00014999,2]
[422709276,1779286244000,-500.0,0.00014999,2]
[422709266,1779286244000,-500.0,0.00014999,2]
[422709269,1779286244000,-500.0,0.00014999,2]
[422709246,1779286244000,-500.0,0.00014999,2]
[422709248,1779286244000,-500.0,0.00014999,2]
[422709251,1779286244000,-500.0,0.00014999,2]
[422709253,1779286244000,-500.0,0.00014999,2]
[422709247,1779286244000,-500.0,0.00014999,2]
[422709254,1779286244000,-500.0,0.00014999,2]
[422709252,1779286244000,-500.0,0.00014999,2]
[422709249,1779286244000,-500.0,0.00014999,2]
[422709257,1779286244000,-500.0,0.00014999,2]
[422709260,1779286244000,-500.0,0.00014999,2]
[422709259,1779286244000,-500.0,0.00014999,2]
[422709270,1779286244000,-500.0,0.00014999,2]
[422709262,1779286244000,-500.0,0.00014999,2]
[422709267,1779286244000,-500.0,0.00014999,2]
[422709261,1779286244000,-200.29478308,0.00014999,2]
[422709265,1779286244000,-500.0,0.00014999,2]
[422709272,1779286244000,-500.0,0.00014999,2]
[422709271,1779286244000,-500.0,0.00014999,2]
[422709291,1779286245000,-99.99928205,0.00011148,2]
[422709292,1779286245000,-1002.56234032,0.00011148,2]
[422709290,1779286245000,-1400.52537883,8.858e-05,2]
[422709289,1779286245000,-827.18086267,8.858e-05,2]
[422709293,1779286246000,-2530.43837763,0.00011148,2]
[422709294,1779286246000,-286.63162237,0.00011837,2]
[422709297,1779286246000,-1661.60062903,0.00014148,2]
[422709296,1779286246000,-198.24004658,0.00013987,2]
[422709295,1779286246000,-1109.82652439,0.00011837,2]
[422709373,1779286379000,285.78132935,8.25e-05,7]
[422709374,1779286398000,152.0,8.869e-05,7]
[422709375,1779286669000,168.0,0.00027,120]
[422709377,1779286832000,167.0,0.00024786,120]
[422709378,1779286834000,167.0,0.00026025,120]
[422709379,1779286835000,167.0,0.00027327,120]
[422709380,1779286837000,167.0,0.00028693,120]
[422709383,1779287105000,171.0,0.0002581,120]
[422709386,1779287130000,168.0,0.00024423,120]
[422709387,1779287132000,168.0,0.00025644,120]
[422709388,1779287204000,500.0,0.00028767,120]
[422709438,1779287341000,1000.0,0.00028766,120]
[422709442,1779287433000,-423.13459805,8.556e-05,2]
[422709443,1779287433000,-203.17823817,8.557e-05,2]
[422709444,1779287433000,-15.71982861,8.557e-05,2]
[422709446,1779287433000,-250.9810655,8.557e-05,2]
[422709445,1779287433000,-933.29910589,8.557e-05,2]
[422709448,1779287433000,-416.07694567,8.558e-05,2]
[422709449,1779287433000,-7608.47198755,8.558e-05,2]
[422709450,1779287433000,-215.20247212,8.701e-05,2]
[422709452,1779287433000,-208.63953863,8.71e-05,2]
[422709447,1779287433000,-274.46306678,8.558e-05,2]
[422709453,1779287433000,-300.0,8.872e-05,2]
[422709454,1779287433000,-274.4762353,8.873e-05,2]
[422709455,1779287433000,-150.0,9.14e-05,2]
[422709456,1779287433000,-16824.98510589,9.141e-05,2]
[422709461,1779287433000,-1547.40244283,9.141e-05,2]
[422709457,1779287433000,-67454.21793036,9.141e-05,2]
[422709458,1779287433000,-104146.44869604,9.141e-05,2]
[422709459,1779287433000,-3993.80444737,9.141e-05,2]
[422709460,1779287433000,-2666.56882091,9.141e-05,2]
[422709462,1779287433000,-15411.6,9.141e-05,2]
[422709451,1779287433000,-160.0,8.71e-05,2]
[422709486,1779287438000,-24924.40426851,9.141e-05,2]
[422709739,1779287440000,-347.81219719,9.141e-05,2]
[422709732,1779287440000,-354.1825217,9.141e-05,2]
[422709742,1779287440000,-585.25089225,9.141e-05,2]
[422709774,1779287441000,-420.13838643,9.141e-05,2]
[422709773,1779287441000,-2740.0,9.141e-05,2]
[422709780,1779287443000,-150.0,9.241e-05,2]
[422709777,1779287443000,-10713.17785065,9.141e-05,2]
[422709779,1779287443000,-964.11,9.141e-05,2]
[422709778,1779287443000,-31101.70823987,9.141e-05,2]
[422709785,1779287443000,-500.0,9.412e-05,2]
[422709787,1779287443000,-6247.84,9.412e-05,2]
[422709786,1779287443000,-150.99,9.412e-05,2]
[422709783,1779287443000,-9999.99,9.241e-05,2]
[422709781,1779287443000,-9174.61,9.241e-05,2]
[422709784,1779287443000,-9999.99,9.241e-05,2]
[422709782,1779287443000,-999.99,9.241e-05,2]
[422709804,1779287444000,-1271.0,0.00011761,2]
[422709807,1779287444000,-6058.0,0.00011761,2]
[422709814,1779287444000,-1139.96,0.00012329,2]
[422709813,1779287444000,-2000.0,0.00012251,2]
[422709816,1779287444000,-2250.89697849,0.00012705,2]
[422709815,1779287444000,-769.0,0.00012528,2]
[422709812,1779287444000,-372.41,0.00012251,2]
[422709806,1779287444000,-3633.0,0.00011761,2]
[422709811,1779287444000,-525.44,0.00012186,2]
[422709818,1779287444000,-164.3,0.00012798,2]
[422709809,1779287444000,-99142.1824,0.00012152,2]
[422709810,1779287444000,-154.75,0.0001218,2]
[422709817,1779287444000,-1818.38,0.00012757,2]
[422709800,1779287444000,-251.7,0.00011374,2]
[422709805,1779287444000,-1224.0,0.00011761,2]
[422709801,1779287444000,-3292.0,0.00011389,2]
[422709820,1779287444000,-160.39,0.00012966,2]
[422709789,1779287444000,-1680.0,9.412e-05,2]
[422709788,1779287444000,-500.0,9.412e-05,2]
[422709790,1779287444000,-203.17823816,9.869e-05,2]
[422709791,1779287444000,-163.44,0.0001,2]
[422709792,1779287444000,-255.0,0.00010054,2]
[422709803,1779287444000,-150.0,0.00011718,2]
[422709794,1779287444000,-8381.98313408,0.00010428,2]
[422709796,1779287444000,-203.17823816,0.00011081,2]
[422709793,1779287444000,-2351.0,0.00010354,2]
[422709798,1779287444000,-566.80050545,0.00011099,2]
[422709799,1779287444000,-566.80050545,0.00011099,2]
[422709802,1779287444000,-200.0,0.00011626,2]
[422709797,1779287444000,-566.80050551,0.00011099,2]
[422709795,1779287444000,-150.0,0.0001106,2]
[422709830,1779287444000,-1000.0,0.000135,2]
[422709808,1779287444000,-2648.76,0.00011976,2]
[422709831,1779287444000,-315.0,0.000135,2]
[422709855,1779287444000,-727.0853518,0.00014199,2]
[422709857,1779287444000,-727.0853518,0.00014199,2]
[422709853,1779287444000,-727.0853518,0.00014199,2]
[422709856,1779287444000,-727.0853518,0.00014199,2]
[422709858,1779287444000,-131.30246563,0.00014199,2]
[422709854,1779287444000,-727.0853518,0.00014199,2]
[422709852,1779287444000,-727.0853518,0.00014199,2]
[422709851,1779287444000,-727.0853518,0.00014199,2]
[422709849,1779287444000,-727.0853518,0.00014199,2]
[422709850,1779287444000,-727.0853518,0.00014199,2]
[422709846,1779287444000,-727.0853518,0.00014199,2]
[422709842,1779287444000,-166.66,0.0001411,2]
[422709845,1779287444000,-727.0853518,0.00014199,2]
[422709848,1779287444000,-727.0853518,0.00014199,2]
[422709843,1779287444000,-727.0853518,0.00014199,2]
[422709840,1779287444000,-166.66,0.00013836,2]
[422709847,1779287444000,-727.0853518,0.00014199,2]
[422709835,1779287444000,-200.0,0.00013699,2]
[422709833,1779287444000,-1818.38,0.00013608,2]
[422709834,1779287444000,-166.66,0.00013699,2]
[422709839,1779287444000,-2000.0,0.00013783,2]
[422709829,1779287444000,-150.0,0.00013488,2]
[422709819,1779287444000,-4417.78,0.00012881,2]
[422709826,1779287444000,-500.0,0.00013356,2]
[422709821,1779287444000,-500.0,0.00013356,2]
[422709828,1779287444000,-617.99883272,0.00013372,2]
[422709823,1779287444000,-1000.0,0.00013356,2]
[422709838,1779287444000,-1587.0,0.0001372,2]
[422709844,1779287444000,-727.0853518,0.00014199,2]
[422709832,1779287444000,-308.0,0.000135,2]
[422709841,1779287444000,-166.66,0.00013973,2]
[422709836,1779287444000,-169.31,0.00013715,2]
[422709837,1779287444000,-169.31,0.00013715,2]
[422710115,1779288128000,1000.0,0.00028767,120]
[422710116,1779288160000,1000.0,0.00028767,120]
[422710117,1779288278000,888.0,0.00028767,120]
[422710118,1779288285000,888.0,0.00028767,120]
[422710119,1779288298000,888.0,0.00028767,120]
[422710120,1779288305000,888.0,0.00028767,120]
[422710121,1779288313000,888.0,0.00028767,120]
[422710122,1779288320000,888.0,0.00028767,120]
[422710123,1779288328000,888.0,0.00028767,120]
[422710124,1779288337000,888.0,0.00028767,120]
[422710125,1779288347000,888.0,0.00028767,120]
[422710126,1779288354000,888.0,0.00028767,120]
[422710127,1779288364000,888.0,0.00028767,120]
[422710128,1779288373000,888.0,0.00028767,120]
[422710129,1779288380000,888.0,0.00028767,120]
[422710130,1779288407000,269.71,0.00028767,120]
[422710131,1779288541000,1000.0,0.00028766,120]
[422710159,1779288631000,-319.9752211,9.04e-05,2]
[422710156,1779288631000,-205.1691502,9.04e-05,2]
[422710158,1779288631000,-500.0,9.04e-05,2]
[422710154,1779288631000,-343.16247386,9.039e-05,2]
[422710157,1779288631000,-500.0,9.04e-05,2]